bitfinex/quotes_BTCUSD_20240811
["timestamp","ask_amount","ask_price","bid_price","bid_amount"]
[1723374475970,0.00836,60839.0,60838.0,0.44722536]
[1723374476847,0.00836,60839.0,60838.0,0.37984609]
[1723374477046,0.00836,60839.0,60838.0,0.44953391]
[1723374477275,0.00836,60839.0,60838.0,0.43753391]
[1723374477424,0.00836,60839.0,60838.0,0.4902983]
[1723374477630,0.00836,60839.0,60838.0,0.5012983]
[1723374478034,0.00836,60839.0,60838.0,0.31561151]
[1723374478230,0.00836,60839.0,60838.0,0.30282004]
[1723374478432,0.00836,60839.0,60838.0,0.21971127]
[1723374479229,0.00836,60839.0,60838.0,0.04489635]
[1723374479230,0.08986,60839.0,60838.0,0.04489635]
[1723374479429,0.15906,60839.0,60823.0,0.03542962]
[1723374479629,0.08184646,60832.0,60825.0,0.04475329]
[1723374480257,0.08184646,60832.0,60826.0,0.0303051]
[1723374480464,0.08184646,60832.0,60827.0,0.10408143]
[1723374480659,0.0815,60831.0,60828.0,0.16381492]
[1723374481464,0.002,60829.0,60828.0,0.16381492]
[1723374481665,0.0815,60831.0,60828.0,0.16381492]
[1723374482285,0.08384646,60832.0,60828.0,0.16381492]
[1723374482286,0.08184646,60832.0,60828.0,0.16381492]
[1723374482475,0.08184646,60832.0,60829.0,0.04793032]
[1723374482701,0.00836,60839.0,60831.0,0.16381492]
[1723374482872,0.00836,60839.0,60836.0,0.16381492]
[1723374483086,0.08184646,60844.0,60837.0,0.04792979]
[1723374483287,0.08184646,60844.0,60838.0,0.26005172]
[1723374483463,0.08184646,60844.0,60840.0,0.0824]
[1723374483700,0.08184646,60844.0,60842.0,0.0717]
[1723374483917,0.0001,60849.0,60842.0,0.31386145]
[1723374484380,0.0001,60849.0,60842.0,0.26915236]
[1723374484589,0.0001,60849.0,60842.0,0.47421957]
[1723374484799,0.0001,60849.0,60842.0,0.54333276]
[1723374485008,0.0001,60849.0,60847.0,0.16381492]
[1723374485215,0.0001,60849.0,60847.0,0.33916879]
[1723374485433,0.0001,60849.0,60847.0,0.34675105]
[1723374485634,0.0001,60849.0,60847.0,0.40056342]
[1723374485851,0.0001,60849.0,60847.0,0.39289329]
[1723374486306,0.0001,60849.0,60847.0,0.39672848]
[1723374486522,0.0001,60849.0,60847.0,0.36646629]
[1723374486736,0.0001,60849.0,60847.0,0.48215268]
[1723374487850,0.0001,60849.0,60847.0,0.26646629]
[1723374488572,0.0001,60849.0,60847.0,0.34786629]
[1723374488780,0.0001,60849.0,60847.0,0.35286629]
[1723374489434,0.0001,60849.0,60847.0,0.45286629]
[1723374489648,0.0001,60849.0,60847.0,0.4782049]
[1723374490085,0.00831,60854.0,60853.0,0.01]
[1723374490282,0.0001,60869.0,60858.0,0.01]
[1723374490495,0.0001,60869.0,60853.0,0.30479253]
[1723374490496,0.08194646,60869.0,60860.0,0.16381492]
[1723374490726,0.08194646,60869.0,60860.0,0.20761686]
[1723374490935,0.08194646,60869.0,60860.0,0.21580697]
[1723374491153,0.08194646,60869.0,60860.0,0.37942133]
[1723374491369,0.08194646,60869.0,60866.0,0.0854]
[1723374491370,0.0001,60869.0,60866.0,0.0854]
[1723374491599,0.0001,60869.0,60868.0,0.16381492]
[1723374491831,0.0001,60869.0,60868.0,0.40405392]
[1723374492039,0.0001,60869.0,60868.0,0.41218577]
[1723374492281,0.1541,60869.0,60868.0,0.04587085]
[1723374492494,0.1661,60869.0,60868.0,0.00813185]
[1723374492695,0.0834,60867.0,60866.0,0.007]
[1723374492916,0.0834,60867.0,60845.0,0.0854]
[1723374492917,0.002,60866.0,60845.0,0.0854]
[1723374493136,0.08184646,60850.0,60846.0,0.00854]
[1723374493586,0.08184646,60857.0,60849.0,0.16381492]
[1723374493795,0.08184646,60849.0,60842.0,0.0854]
[1723374494454,0.08184646,60849.0,60848.0,0.16381492]
[1723374494866,0.08184646,60857.0,60848.0,0.16381492]
[1723374495220,0.08184646,60857.0,60852.0,0.16381492]
[1723374495475,0.08184646,60857.0,60853.0,0.02624773]
[1723374495659,0.08184646,60857.0,60854.0,0.16381492]
[1723374496835,0.08184646,60868.0,60856.0,0.16381492]
[1723374497037,0.08184646,60868.0,60855.0,0.0854]
[1723374497038,0.08184646,60868.0,60858.0,0.16381492]
[1723374497254,0.08184646,60868.0,60857.0,0.1]
[1723374497255,0.08184646,60868.0,60862.0,0.16381492]
[1723374497468,0.0001,60869.0,60867.0,0.16381492]
[1723374497683,0.0001,60869.0,60868.0,0.16381492]
[1723374498135,6e-05,60869.0,60868.0,0.26710024]
[1723374498820,6e-05,60869.0,60868.0,0.26381492]
[1723374500351,6e-05,60869.0,60868.0,0.31204619]
[1723374500555,6e-05,60869.0,60868.0,0.36192694]
[1723374500761,6e-05,60869.0,60868.0,0.35864171]
[1723374500961,0.08184646,60871.0,60868.0,0.35864171]
[1723374501158,0.08184646,60871.0,60870.0,0.16381492]
[1723374501359,0.08184646,60871.0,60870.0,0.30867208]
[1723374501574,0.08184646,60871.0,60870.0,0.36306736]
[1723374502427,0.08184646,60871.0,60870.0,0.37006736]
[1723374502632,0.08021646,60878.0,60870.0,0.40044977]
[1723374502873,0.08021646,60878.0,60877.0,0.22961492]
[1723374503289,0.08021646,60878.0,60877.0,0.27455539]
[1723374503494,0.08021646,60878.0,60877.0,0.30233942]
[1723374503699,0.08021646,60878.0,60877.0,0.30233937]
[1723374504254,0.08021646,60878.0,60877.0,0.40233937]
[1723374504458,0.0015,60886.0,60877.0,0.40233937]
[1723374504666,0.0015,60886.0,60879.0,0.16381492]
[1723374504889,0.0015,60886.0,60879.0,0.4030616]
[1723374505089,0.0015,60886.0,60879.0,0.44793899]
[1723374505490,0.0015,60886.0,60879.0,1.23839687]
[1723374505651,0.0015,60886.0,60879.0,0.47839644]
[1723374505861,0.0015,60886.0,60879.0,0.48511217]
[1723374506356,0.0015,60886.0,60879.0,0.49511217]
[1723374506555,0.0015,60886.0,60879.0,1.06977733]
[1723374506753,0.0015,60886.0,60879.0,1.14534492]
[1723374507050,0.0015,60886.0,60879.0,1.07154399]
[1723374507272,0.0015,60886.0,60879.0,0.31437733]
[1723374508004,0.0015,60886.0,60879.0,0.35932013]
[1723374508201,0.0015,60886.0,60879.0,0.93732013]
[1723374508477,0.0015,60886.0,60879.0,1.09042013]
[1723374508687,0.0015,60886.0,60882.0,0.092]
[1723374508888,0.00831,60893.0,60888.0,0.092]
[1723374509108,0.00831,60893.0,60892.0,0.16381492]
[1723374509317,0.00831,60893.0,60892.0,0.31204122]
[1723374509554,0.00831,60893.0,60892.0,1.12185772]
[1723374509745,0.00831,60893.0,60892.0,0.46168109]
[1723374509979,0.00831,60893.0,60892.0,0.41691492]
[1723374510173,0.00831,60893.0,60892.0,0.50655668]
[1723374510381,0.00831,60893.0,60892.0,1.08116456]
[1723374510737,0.00831,60893.0,60892.0,0.50655654]
[1723374510947,0.00662,60900.0,60894.0,0.01]
[1723374511176,0.00662,60900.0,60899.0,0.16381492]
[1723374511373,0.00662,60900.0,60899.0,0.18119641]
[1723374512572,0.23836646,60900.0,60899.0,0.02138149]
[1723374512773,0.26336646,60900.0,60899.0,0.004]
[1723374513793,0.24036646,60900.0,60899.0,0.16781492]
[1723374513992,0.26336646,60900.0,60899.0,0.004]
[1723374514292,0.002,60897.0,60876.0,0.1531]
[1723374514495,0.08184646,60888.0,60881.0,0.16381492]
[1723374514697,0.08184646,60888.0,60882.0,0.1308993]
[1723374514921,0.08184646,60888.0,60883.0,0.16381492]
[1723374515368,0.0814,60896.0,60883.0,0.16381492]
[1723374515542,0.08184646,60891.0,60883.0,0.16381492]
[1723374515774,0.0814,60886.0,60883.0,0.16381492]
[1723374515975,0.0814,60886.0,60884.0,0.02947142]
[1723374516181,0.0814,60886.0,60885.0,0.16381492]
[1723374517215,0.16324646,60891.0,60885.0,0.16381492]
[1723374517408,0.0814,60891.0,60887.0,0.16381492]
[1723374517609,0.0814,60891.0,60888.0,0.01932863]
[1723374517725,0.002,60899.0,60889.0,0.16381492]
[1723374517726,0.0814,60896.0,60889.0,0.16381492]
[1723374518985,0.15696646,60900.0,60889.0,0.16381492]
[1723374518986,0.0814,60892.0,60889.0,0.16381492]
[1723374520028,0.002,60891.0,60889.0,0.16381492]
[1723374520456,0.0814,60892.0,60889.0,0.16381492]
[1723374520634,0.0814,60892.0,60890.0,0.01831435]
[1723374520635,0.0685,60891.0,60890.0,0.01831435]
[1723374520809,0.1499,60891.0,60890.0,0.18212927]
[1723374521210,0.1519,60891.0,60890.0,0.18212927]
[1723374522224,0.1519,60891.0,60890.0,0.18312927]
[1723374522626,0.02,60901.0,60890.0,0.18312927]
[1723374522627,0.0814,60898.0,60890.0,0.18312927]
[1723374522852,0.0814,60898.0,60891.0,0.19252196]
[1723374523610,0.08846646,60900.0,60892.0,0.16381492]
[1723374523839,0.08846646,60900.0,60893.0,0.00328412]
[1723374524039,0.08846646,60900.0,60894.0,0.16381492]
[1723374524243,0.08846646,60900.0,60896.0,0.16381492]
[1723374524444,0.08846646,60900.0,60897.0,0.18052482]
[1723374526419,0.08846646,60900.0,60899.0,0.16381492]
[1723374527066,0.08846646,60900.0,60899.0,0.28021966]
[1723374527492,0.08846646,60900.0,60899.0,0.20891966]
[1723374527665,0.08846646,60900.0,60899.0,0.20991966]
[1723374527911,0.08846646,60900.0,60899.0,0.24142262]
[1723374528113,0.08846646,60900.0,60899.0,0.24042262]
[1723374529162,0.08846646,60900.0,60899.0,0.19531788]
[1723374529355,0.08846646,60900.0,60899.0,0.24013927]
[1723374530235,0.08846646,60900.0,60899.0,0.19531788]
[1723374530407,0.00662,60900.0,60899.0,0.23991511]
[1723374531590,0.08846646,60900.0,60899.0,0.23991511]
[1723374533119,0.08846646,60900.0,60899.0,0.35845732]
[1723374533322,0.00662,60900.0,60899.0,0.42975732]
[1723374534239,0.00662,60900.0,60899.0,0.27005732]
[1723374535294,0.00662,60900.0,60899.0,0.23972226]
[1723374535495,0.00662,60900.0,60899.0,0.26999901]
[1723374535674,0.00662,60900.0,60899.0,0.36168249]
[1723374535849,0.00662,60900.0,60899.0,0.35839901]
[1723374536047,0.00662,60900.0,60899.0,0.36039901]
[1723374536272,0.00662,60900.0,60899.0,0.35839901]
[1723374536509,0.00662,60900.0,60899.0,0.26999901]
[1723374536711,0.00662,60900.0,60899.0,0.24372226]
[1723374536914,0.00662,60900.0,60899.0,0.23915155]
[1723374537265,0.00662,60900.0,60899.0,0.20031788]
[1723374537490,0.00662,60900.0,60899.0,0.19531788]
[1723374537693,0.00662,60900.0,60899.0,0.2391492]
[1723374538908,0.00662,60900.0,60899.0,0.2451492]
[1723374539097,0.00662,60900.0,60899.0,0.27529569]
[1723374539374,0.00662,60900.0,60899.0,0.26929569]
[1723374539544,0.00662,60900.0,60899.0,0.27529569]
[1723374539975,0.00662,60900.0,60899.0,0.2451492]
[1723374540166,0.00662,60900.0,60899.0,0.27527994]
[1723374540877,0.00662,60900.0,60899.0,0.27479747]
[1723374541504,0.00662,60900.0,60899.0,0.2446672]
[1723374541721,0.00662,60900.0,60899.0,0.40765093]
[1723374542100,0.00662,60900.0,60899.0,0.27473838]
[1723374542328,0.00662,60900.0,60899.0,0.2386672]
[1723374542742,0.00662,60900.0,60899.0,0.2446672]
[1723374543497,0.00662,60900.0,60899.0,0.20131788]
[1723374543716,0.00662,60900.0,60899.0,0.24460736]
[1723374544996,0.00662,60900.0,60899.0,0.20131788]
[1723374545413,0.09772,60900.0,60899.0,0.19531788]
[1723374545622,0.12072,60900.0,60899.0,0.03150296]
[1723374545914,0.12072,60900.0,60899.0,0.006]
[1723374546463,0.11872,60900.0,60897.0,0.0009141]
[1723374546886,0.002,60898.0,60897.0,0.0009141]
[1723374547670,0.1615,60898.0,60897.0,0.0009141]
[1723374548080,0.1845,60898.0,60897.0,0.0009141]
[1723374548276,0.1945,60898.0,60897.0,0.0009141]
[1723374548688,0.2145,60898.0,60897.0,0.0009141]
[1723374548895,0.3045,60898.0,60897.0,0.0009141]
[1723374549097,0.02,60891.0,60890.0,0.0009141]
[1723374549300,0.1945,60891.0,60890.0,0.0009141]
[1723374549522,0.3045,60891.0,60890.0,0.0009141]
[1723374550114,0.0891,60884.0,60861.0,0.07575262]
[1723374550317,0.08184646,60871.0,60865.0,0.45637306]
[1723374550618,0.08184646,60871.0,60866.0,0.14841288]
[1723374550865,0.08184646,60871.0,60867.0,0.23158736]
[1723374551035,0.08184646,60871.0,60868.0,0.06777244]
[1723374551289,0.08184646,60871.0,60863.0,0.065797]
[1723374551290,0.08184646,60871.0,60869.0,0.22480256]
[1723374551497,0.08184646,60871.0,60869.0,0.20173633]
[1723374551698,0.002,60870.0,60869.0,0.16381492]
[1723374552085,0.08384646,60871.0,60869.0,0.16381492]
[1723374552937,0.08184646,60871.0,60869.0,0.16381492]
[1723374553140,0.08184646,60871.0,60870.0,0.01778149]
[1723374553343,0.08184646,60871.0,60870.0,0.18159641]
[1723374555524,0.08184646,60871.0,60870.0,0.19559641]
[1723374555902,0.08384646,60871.0,60870.0,0.19559641]
[1723374557144,0.08184646,60871.0,60870.0,0.19559641]
[1723374558417,0.08384646,60871.0,60870.0,0.19559641]
[1723374559773,0.08384646,60871.0,60870.0,0.19651051]
[1723374559975,0.08384646,60871.0,60870.0,0.0149141]
[1723374560987,0.08384646,60871.0,60870.0,0.17872902]
[1723374560988,0.08184646,60871.0,60870.0,0.17872902]
[1723374566366,0.23574646,60871.0,60870.0,0.0149141]
[1723374566798,0.23374646,60871.0,60870.0,0.0149141]
[1723374567291,0.08184646,60871.0,60870.0,0.17872902]
[1723374567689,0.08184646,60871.0,60870.0,0.20518192]
[1723374567841,0.08384646,60871.0,60870.0,0.20518192]
[1723374568043,0.08184646,60871.0,60870.0,0.20518192]
[1723374568944,0.08384646,60871.0,60870.0,0.20518192]
[1723374569454,0.08184646,60871.0,60870.0,0.20518192]
[1723374569653,0.08384646,60871.0,60870.0,0.20518192]
[1723374571262,0.08384646,60871.0,60870.0,0.0149141]
[1723374571462,0.16634646,60871.0,60870.0,0.0149141]
[1723374573174,0.08184646,60878.0,60870.0,0.24832902]
[1723374573408,0.08184646,60871.0,60870.0,0.0845141]
[1723374573607,0.08184646,60878.0,60870.0,0.0845141]
[1723374573948,0.08184646,60878.0,60871.0,0.05447347]
[1723374574161,0.08184646,60878.0,60870.0,0.0845141]
[1723374574162,0.08184646,60878.0,60872.0,0.03744206]
[1723374574362,0.08184646,60878.0,60873.0,0.03744206]
[1723374574471,0.08184646,60878.0,60874.0,0.03744206]
[1723374574698,0.08184646,60878.0,60875.0,0.16381492]
[1723374574914,0.08184646,60878.0,60876.0,0.16381492]
[1723374575311,0.08184646,60878.0,60877.0,0.03738932]
[1723374575523,0.08184646,60878.0,60877.0,0.28700424]
[1723374575949,0.08184646,60878.0,60877.0,0.31570466]
[1723374576818,0.08184646,60878.0,60877.0,0.32270466]
[1723374577555,0.08184646,60878.0,60877.0,0.35251843]
[1723374579323,0.08184646,60878.0,60877.0,0.35237171]
[1723374580771,0.08184646,60878.0,60877.0,0.26657171]
[1723374581316,0.08184646,60878.0,60877.0,0.27538598]
[1723374581739,0.08284646,60878.0,60877.0,0.27538598]
[1723374583087,0.08284646,60878.0,60877.0,0.20832961]
[1723374583286,0.08284646,60878.0,60877.0,0.27453888]
[1723374583801,0.08284646,60878.0,60877.0,0.27453839]
[1723374584371,0.001,60878.0,60877.0,0.42993839]
[1723374586423,0.001,60878.0,60877.0,0.49780693]
[1723374586831,0.001,60878.0,60877.0,0.49816718]
[1723374587030,0.001,60878.0,60877.0,0.59816718]
[1723374587232,0.08267746,60890.0,60878.0,0.0861]
[1723374587475,0.08267746,60890.0,60889.0,0.16381492]
[1723374587679,0.08267746,60890.0,60889.0,0.03691171]
[1723374588394,0.09467746,60890.0,60889.0,0.03691171]
[1723374588600,0.09467746,60890.0,60887.0,0.0861]
[1723374588800,0.09467746,60890.0,60888.0,0.03654999]
[1723374589113,0.09467746,60890.0,60889.0,0.17607992]
[1723374589629,0.08267746,60890.0,60889.0,0.17607992]
[1723374590255,0.09467746,60890.0,60889.0,0.17707992]
[1723374590640,0.08267746,60890.0,60889.0,0.17607992]
[1723374591178,0.08867746,60890.0,60889.0,0.17707992]
[1723374591555,0.08867746,60890.0,60889.0,0.21565277]
[1723374591756,0.08867746,60890.0,60889.0,0.21365277]
[1723374591955,0.08867746,60890.0,60889.0,0.21365051]
[1723374592158,0.08867746,60890.0,60889.0,0.21565051]
[1723374592559,0.08867746,60890.0,60889.0,0.21365051]
[1723374592760,0.08867746,60890.0,60889.0,0.28125051]
[1723374592761,0.08267746,60890.0,60889.0,0.28125051]
[1723374592968,0.08267746,60890.0,60889.0,0.28325051]
[1723374593330,0.08867746,60890.0,60889.0,0.37035051]
[1723374593743,0.08267746,60890.0,60889.0,0.36935051]
[1723374593948,0.08267746,60890.0,60889.0,0.36926706]
[1723374594174,0.08267746,60890.0,60889.0,0.37026706]
[1723374594175,0.08867746,60890.0,60889.0,0.37026706]
[1723374594373,0.08867746,60890.0,60889.0,0.33177992]
[1723374594573,0.08867746,60890.0,60889.0,0.36832445]
[1723374594781,0.08267746,60890.0,60889.0,0.36932445]
[1723374594982,0.08267746,60890.0,60889.0,0.49696707]
[1723374595358,0.000831,60890.0,60889.0,0.55643758]
[1723374595562,0.000831,60890.0,60889.0,0.55843758]
[1723374595778,0.000831,60890.0,60889.0,0.55447597]
[1723374596389,0.006831,60890.0,60889.0,0.56147597]
[1723374597064,0.000831,60890.0,60889.0,0.56047597]
[1723374597409,0.000831,60890.0,60889.0,0.55747597]
[1723374597610,0.000831,60890.0,60889.0,0.55754384]
[1723374598011,0.000831,60890.0,60889.0,0.56954384]
[1723374599320,0.000831,60890.0,60889.0,0.50003494]
[1723374599541,0.000831,60890.0,60889.0,0.34533494]
[1723374599740,0.000831,60890.0,60889.0,0.34233494]
[1723374600172,0.000831,60890.0,60889.0,0.34633494]
[1723374600813,0.000831,60890.0,60889.0,0.30579041]
[1723374601011,0.000831,60890.0,60889.0,0.3551004]
[1723374601144,0.000831,60890.0,60889.0,0.3461004]
[1723374601731,0.000831,60890.0,60889.0,0.3591004]
[1723374603587,0.000831,60890.0,60889.0,0.37917992]
[1723374603784,0.000831,60890.0,60889.0,0.44506982]
[1723374604271,0.000831,60890.0,60889.0,0.47735471]
[1723374604446,0.000831,60890.0,60889.0,0.57417868]
[1723374605651,0.000831,60890.0,60889.0,0.56117868]
[1723374605851,0.000831,60890.0,60889.0,0.55717868]
[1723374606052,0.000831,60890.0,60889.0,0.57117868]
[1723374606456,0.000831,60890.0,60889.0,0.57617868]
[1723374607037,0.000831,60890.0,60889.0,0.44477992]
[1723374607302,0.000831,60890.0,60889.0,0.56094644]
[1723374607504,0.001831,60890.0,60889.0,1.36694644]
[1723374607683,0.001831,60890.0,60889.0,1.38094644]
[1723374608591,0.001831,60890.0,60889.0,1.36694644]
[1723374608802,0.001831,60890.0,60889.0,1.38094644]
[1723374608959,0.000831,60890.0,60889.0,1.37494644]
[1723374609588,0.001831,60890.0,60889.0,1.38094644]
[1723374610009,0.000831,60890.0,60889.0,1.37494644]
[1723374610223,0.000831,60890.0,60889.0,1.36094644]
[1723374610429,0.000831,60890.0,60889.0,1.35943575]
[1723374610629,0.001831,60890.0,60889.0,1.29820378]
[1723374610849,0.001831,60890.0,60889.0,1.37931292]
[1723374610975,0.001831,60890.0,60889.0,1.36531292]
[1723374611375,0.001831,60890.0,60889.0,1.37931292]
[1723374611571,0.001831,60890.0,60889.0,1.38931292]
[1723374612000,0.000831,60890.0,60889.0,1.38331292]
[1723374612538,0.001831,60890.0,60889.0,1.37531292]
[1723374612735,0.001831,60890.0,60889.0,1.37622702]
[1723374612936,0.000831,60890.0,60889.0,1.37022702]
[1723374613320,0.001831,60890.0,60889.0,1.36622702]
[1723374613942,0.000831,60890.0,60889.0,1.36022702]
[1723374614285,0.000831,60890.0,60889.0,1.36446037]
[1723374614415,0.000831,60890.0,60889.0,1.37846037]
[1723374614620,0.000831,60890.0,60889.0,1.28340556]
[1723374614830,0.000831,60890.0,60889.0,1.34082789]
[1723374615044,0.000831,60890.0,60889.0,1.37857246]
[1723374615453,0.000831,60890.0,60889.0,1.29847246]
[1723374615454,0.001831,60890.0,60889.0,1.29847246]
[1723374615664,0.001831,60890.0,60889.0,1.22987246]
[1723374616063,0.000831,60890.0,60889.0,1.22387246]
[1723374616499,0.001831,60890.0,60889.0,1.22987246]
[1723374616939,0.000831,60890.0,60889.0,1.20987246]
[1723374617297,0.000831,60890.0,60889.0,1.22387246]
[1723374617582,0.001831,60890.0,60889.0,1.31997246]
[1723374617783,0.001831,60890.0,60889.0,1.26262019]
[1723374617984,0.001831,60890.0,60889.0,1.29947098]
[1723374618193,0.001831,60890.0,60889.0,1.31347098]
[1723374618816,0.000831,60890.0,60889.0,1.30347098]
[1723374619219,0.001831,60890.0,60889.0,1.31447098]
[1723374619812,0.000831,60890.0,60889.0,1.30347098]
[1723374620039,0.000831,60890.0,60889.0,1.29947098]
[1723374620238,0.001831,60890.0,60889.0,1.37767098]
[1723374620440,0.001831,60890.0,60889.0,1.38167098]
[1723374621309,0.001831,60890.0,60889.0,1.27100705]
[1723374621545,0.001831,60890.0,60889.0,1.36488124]
[1723374621733,0.001831,60890.0,60889.0,1.37888124]
[1723374621919,0.000831,60890.0,60889.0,1.36788124]
[1723374622313,0.001831,60890.0,60889.0,1.44564224]
[1723374624350,0.00662,60900.0,60894.0,0.01]
[1723374624531,0.00130307,60903.0,60900.0,0.0861]
[1723374624741,1e-08,60903.0,60902.0,0.16381492]
[1723374624918,0.08340001,60903.0,60902.0,0.39325581]
[1723374625317,1e-08,60903.0,60902.0,0.47028159]
[1723374625641,1e-08,60903.0,60902.0,0.55458159]
[1723374626645,1e-08,60903.0,60902.0,0.55558159]
[1723374626909,1e-08,60903.0,60902.0,0.6146109]
[1723374627479,1e-08,60903.0,60902.0,1.3436109]
[1723374627688,1e-08,60903.0,60902.0,1.35251346]
[1723374627860,1e-08,60903.0,60902.0,1.19311346]
[1723374628059,1e-08,60903.0,60902.0,1.05174679]
[1723374628292,1e-08,60903.0,60902.0,1.21135217]
[1723374628495,1e-08,60903.0,60902.0,1.21835217]
[1723374629402,1e-08,60903.0,60902.0,1.21135217]
[1723374629984,1e-08,60903.0,60902.0,1.21935217]
[1723374630965,1e-08,60903.0,60902.0,1.20535217]
[1723374631631,1e-08,60903.0,60902.0,1.1348049]
[1723374631833,1e-08,60903.0,60902.0,1.21018515]
[1723374632046,1e-08,60903.0,60902.0,1.21818515]
[1723374632387,1e-08,60903.0,60902.0,1.21018515]
[1723374632586,0.0826,60919.0,60903.0,0.0661]
[1723374632808,0.0826,60919.0,60908.0,0.16381492]
[1723374633052,0.0826,60919.0,60909.0,0.0843]
[1723374633261,0.0826,60919.0,60917.0,0.16381492]
[1723374633406,0.0826,60919.0,60917.0,0.20266245]
[1723374633611,0.01031,60918.0,60917.0,0.20266245]
[1723374633813,0.00831,60918.0,60917.0,0.22292869]
[1723374634399,0.00831,60918.0,60917.0,0.4038176]
[1723374634883,0.00831,60918.0,60917.0,0.25302254]
[1723374635290,0.00831,60918.0,60917.0,0.21417891]
[1723374635491,0.00831,60918.0,60917.0,0.25279288]
[1723374635677,0.00831,60918.0,60917.0,0.18408116]
[1723374635844,0.00831,60918.0,60917.0,0.25234961]
[1723374636338,0.00831,60918.0,60917.0,0.2751009]
[1723374636927,0.00831,60918.0,60917.0,0.2631009]
[1723374637133,0.00831,60918.0,60917.0,0.60777801]
[1723374637337,0.00831,60930.0,60917.0,0.60777801]
[1723374637536,0.00831,60930.0,60928.0,0.16381492]
[1723374637739,0.08184646,60928.0,60918.0,0.1673878]
[1723374637885,0.08184646,60928.0,60919.0,0.21344147]
[1723374638088,0.08184646,60928.0,60920.0,0.31344147]
[1723374638416,0.08184646,60928.0,60921.0,0.21344147]
[1723374638618,0.00831,60930.0,60927.0,0.16381492]
[1723374638831,0.00831,60930.0,60928.0,0.20213129]
[1723374639068,0.00831,60930.0,60928.0,0.22234442]
[1723374640827,0.1514,60929.0,60928.0,0.18402805]
[1723374641364,0.1514,60929.0,60928.0,0.19602805]
[1723374641562,0.1534,60929.0,60928.0,0.18502805]
[1723374641770,0.1534,60929.0,60928.0,0.18402805]
[1723374641965,0.1364,60929.0,60928.0,0.18402805]
[1723374642140,0.1364,60929.0,60928.0,0.18502805]
[1723374642390,0.1384,60929.0,60928.0,0.18502805]
[1723374642770,0.1364,60929.0,60928.0,0.18402805]
[1723374643804,0.1364,60929.0,60928.0,0.19502805]
[1723374643985,0.1364,60929.0,60928.0,0.18402805]
[1723374644392,0.00831,60930.0,60928.0,0.19102805]
[1723374644589,0.00831,60930.0,60929.0,0.19043794]
[1723374645857,0.00831,60930.0,60929.0,0.22860899]
[1723374646059,0.00831,60930.0,60929.0,0.22860827]
[1723374646623,0.00831,60930.0,60929.0,0.22878561]
[1723374646970,0.00831,60930.0,60929.0,0.31248561]
[1723374647173,0.00831,60930.0,60929.0,0.35880453]
[1723374647526,0.00831,60930.0,60929.0,0.36380453]
[1723374647753,0.00831,60930.0,60929.0,0.35875855]
[1723374648156,0.00831,60930.0,60929.0,0.33378561]
[1723374648474,0.00831,60930.0,60929.0,0.32878561]
[1723374649032,0.00831,60930.0,60929.0,0.34178561]
[1723374649234,0.00831,60930.0,60929.0,0.20343794]
[1723374649235,0.16681,60930.0,60929.0,0.20343794]
[1723374649434,0.16681,60930.0,60929.0,0.013]
[1723374649667,0.18981,60930.0,60929.0,0.011]
[1723374650500,0.19981,60930.0,60929.0,0.011]
[1723374650669,0.18981,60930.0,60929.0,0.011]
[1723374650901,0.002,60926.0,60903.0,0.0675]
[1723374651096,0.08184646,60922.0,60916.0,0.16381492]
[1723374651295,0.08184646,60922.0,60917.0,0.03848934]
[1723374651475,0.08384646,60922.0,60918.0,0.16381492]
[1723374652041,0.0842,60925.0,60918.0,0.16381492]
[1723374652042,0.08184646,60919.0,60918.0,0.16381492]
[1723374652374,0.15414646,60919.0,60918.0,0.20330245]
[1723374652568,0.15414646,60919.0,60918.0,0.2236327]
[1723374652770,0.15414646,60919.0,60918.0,0.2306327]
[1723374654456,0.15414646,60919.0,60918.0,0.2256327]
[1723374654662,0.15414646,60919.0,60918.0,0.2366327]
[1723374654858,0.23834646,60919.0,60918.0,0.2366327]
[1723374656497,0.23834646,60919.0,60918.0,0.23614963]
[1723374656923,0.23834646,60919.0,60918.0,0.19714517]
[1723374657095,0.1565,60929.0,60918.0,0.23614963]
[1723374657315,0.08184646,60926.0,60919.0,0.06261942]
[1723374657494,0.08184646,60926.0,60920.0,0.20281938]
[1723374657690,0.08184646,60926.0,60920.0,0.16381492]
[1723374658112,0.08184646,60926.0,60921.0,0.03923853]
[1723374658311,0.08184646,60926.0,60922.0,0.18851479]
[1723374658517,0.08384646,60926.0,60922.0,0.18851479]
[1723374659110,0.00831,60930.0,60925.0,0.16381492]
[1723374659294,0.00831,60930.0,60926.0,0.16381492]
[1723374659497,0.00831,60930.0,60927.0,0.03915433]
[1723374659694,0.00831,60930.0,60928.0,0.18411185]
[1723374661722,0.00831,60930.0,60929.0,0.03901959]
[1723374661934,0.0842,60938.0,60929.0,0.20283451]
[1723374662157,0.08061,60941.0,60934.0,0.16381492]
[1723374662158,0.16481,60941.0,60934.0,0.16381492]
[1723374662494,0.08184646,60938.0,60935.0,0.03901959]
[1723374662708,0.08184646,60938.0,60936.0,0.16381492]
[1723374662909,0.08184646,60938.0,60937.0,0.03901959]
[1723374663028,0.08184646,60938.0,60937.0,0.20283451]
[1723374663229,0.08184646,60938.0,60937.0,0.22311796]
[1723374665288,0.08184646,60938.0,60937.0,0.22811796]
[1723374666055,0.09251,60941.0,60937.0,0.18809837]
[1723374666259,0.00831,60941.0,60938.0,0.20225027]
[1723374666665,0.00831,60941.0,60938.0,0.20224837]
[1723374666868,0.00831,60941.0,60938.0,0.22490155]
[1723374668487,0.00831,60941.0,60938.0,0.38550155]
[1723374668732,0.00831,60941.0,60938.0,0.51046991]
[1723374668935,0.00831,60941.0,60938.0,0.51546991]
[1723374669378,0.00831,60941.0,60938.0,0.51046991]
[1723374669582,0.00831,60941.0,60938.0,0.47198234]
[1723374669777,0.00831,60941.0,60938.0,0.5101224]
[1723374670343,0.00831,60941.0,60938.0,0.3545224]
[1723374670546,0.09711,60939.0,60938.0,0.20195498]
[1723374670739,0.09711,60939.0,60938.0,0.16881492]
[1723374671116,0.09711,60939.0,60938.0,0.16381492]
[1723374671264,0.09711,60939.0,60938.0,0.17581492]
[1723374671471,0.19701,60939.0,60938.0,0.012]
[1723374671681,0.0699,60929.0,60928.0,0.000913]
[1723374671885,0.15174646,60929.0,60928.0,0.000913]
[1723374672089,0.24054646,60929.0,60928.0,0.000913]
[1723374672660,0.27054646,60929.0,60928.0,0.000913]
[1723374672781,0.34222708,60929.0,60928.0,0.000913]
[1723374672988,0.36656739,60929.0,60928.0,0.000913]
[1723374673232,0.75488603,60929.0,60928.0,0.001913]